Cogmind - Beta 12 @@@ ROGUE MODE // 2023.04.13 @ 23:19:34 Player: Azken Zutik Result: Core destroyed Performance ------------- Evolutions (3) 1500 Regions Visited (11) 2200 Robots Destroyed (251) 1255 Value Destroyed (8219) 8219 Prototype IDs (8) 160 Alien Tech Used (0) 0 Bonus (3999) 3999 TOTAL SCORE: 17333 Bonus ------- High Alert Combat Kills 2778 Follower Combat Kills 1448 Entered Garrisons 200 Used RIF Installer 1000 Friendly Fire -1427 Cogmind --------- Core Integrity 0/700 Matter 114/300 Energy 100/100 System Corruption 47% Temperature Cool (0) Movement Core (50) Location -7/Waste Parts ------- > --- POWER (2) -------- (None) > --- PROPULSION (4) --- (None) > --- UTILITY (5) ------ (None) > --- WEAPON (2) ------- (None) > --- INVENTORY (5) ---- Light Treads YI-UF0's Bottomless Matter Pit (1353) Improved Hardlight Generator Relay Coupler [Sentry] (28) Long-range Tractor Beam Peak State ------------ > --- POWER ------------ Cooled Ion Engine Cooled Ion Engine > --- PROPULSION ------- Light Treads Light Treads Light Treads Light Treads > --- UTILITY ---------- Improved Heat Sink Huge Storage Unit Reflective Plating Focal Shield Improved Hardlight Generator > --- WEAPON ----------- Gauss Rifle Remote Datajack > --- INVENTORY -------- Cooled Ion Engine Light Treads Light Treads Light Treads Improved Heat Sink YI-UF0's Bottomless Matter Pit Target Analyzer Transmission Jammer Reflective Plating Improved Hardlight Generator Improved Hardlight Generator Hacking Suite Relay Coupler [Sentry] System Restoration Module Long-range Tractor Beam Drone Bay Improved Light Cannon Improved Light Cannon Improved Light Cannon Rocket Launcher Rocket Launcher Rocket Launcher Rocket Launcher Plasma Cutter Great Maul [Rating: 42] Favorites ----------- Power Cooled Ion Engine Engine Cooled Ion Engine Power Core Light Nuclear Core Propulsion Light Treads Treads Light Treads Leg Aluminum Leg Utility Huge Storage Unit Device Advanced Heat Sink Storage Huge Storage Unit Processor Transport Network Coupler Hackware Makeshift Hacking Suite Protection Reflective Plating Weapon Improved Assault Rifle Energy Gun Advanced Beam Rifle Ballistic Gun Improved Assault Rifle Ballistic Cannon Improved Light Cannon Launcher Rocket Launcher Special Weapon Mining Laser Impact Weapon Great Maul Build | -11 -10 -10 -9 -9 -9 -8 -8 -8 -8 -7 -7 ------- Run | Jun Mat Min Mat Min Exi Min Mat Sto Gar Fac Was Slots Evolved 6 | . . . 2 . . . 2 . . 2 . Power 1 | . . . . . . . 1 . . . . Propulsion 2 | . . . 1 . . . . . . 1 . Utility 3 | . . . 1 . . . 1 . . 1 . Weapon . | . . . . . . . . . . . . Parts Attached 224 | 3 11 7 25 11 . 11 53 44 36 12 11 Power 24 | . 1 1 2 1 . 1 8 7 . 2 1 Engine 14 | . 1 1 1 1 . . 4 5 . 1 . Core 10 | . . . 1 . . 1 4 2 . 1 1 Reactor . | . . . . . . . . . . . . Propulsion 51 | 2 1 1 9 . . 3 17 8 5 3 2 Treads 51 | 2 1 1 9 . . 3 17 8 5 3 2 Leg . | . . . . . . . . . . . . Wheel . | . . . . . . . . . . . . Hover . | . . . . . . . . . . . . Flight . | . . . . . . . . . . . . Utility 54 | 1 4 1 3 5 . 1 12 9 13 2 3 Device 26 | 1 . 1 1 4 . . 2 3 11 1 2 Storage 4 | . 3 . . 1 . . . . . . . Processor 5 | . 1 . 1 . . . 2 . . 1 . Hackware 1 | . . . . . . . . 1 . . . Protection 18 | . . . 1 . . 1 8 5 2 . 1 Artifact . | . . . . . . . . . . . . Weapon 95 | . 5 4 11 5 . 6 16 20 18 5 5 Energy Gun 1 | . . . 1 . . . . . . . . Energy Cannon . | . . . . . . . . . . . . Ballistic Gun 37 | . 2 . 2 3 . 3 9 9 6 . 3 Ballistic Cannon 22 | . 2 2 6 . . . 3 2 4 2 1 Launcher 18 | . 1 1 1 2 . 3 2 4 3 1 . Special Weapon 2 | . . 1 . . . . . . . 1 . Impact Weapon 15 | . . . 1 . . . 2 5 5 1 1 Slashing Weapon . | . . . . . . . . . . . . Piercing Weapon . | . . . . . . . . . . . . Special Melee Weapon . | . . . . . . . . . . . . Unidentified Prototypes 8 | . . . 2 2 . . 2 2 . . . Parts Lost 27 | . . 1 . 1 . 2 4 4 4 2 9 Power 5 | . . . . . . . 1 1 . 1 2 Propulsion 5 | . . 1 . . . 1 . . . . 3 Utility 12 | . . . . 1 . . 2 3 2 1 3 Weapon 5 | . . . . . . 1 1 . 2 . 1 Highest Loss Streak 5 | . . 1 . 1 . 2 3 3 2 2 5 To Critical Strikes 2 | . . . . . . . . . 1 1 . Average Slot Usage (%) 98 | . 100 100 99 98 100 100 95 99 99 99 87 Engine 9 | . 14 14 4 9 11 3 6 11 18 14 6 Core 4 | . . . 6 1 . 7 11 6 . . 4 Treads 29 | . 28 28 32 33 33 33 27 27 27 30 25 Device 11 | . 3 6 11 9 11 11 9 14 17 20 14 Storage 10 | . 14 14 11 11 11 11 9 9 9 7 6 Processor 3 | . 10 7 6 . . . 4 1 . 2 6 Protection 6 | . . . 4 11 11 11 8 9 9 7 4 Ballistic Gun 13 | . 24 . 10 21 22 21 16 13 9 7 11 Ballistic Cannon 5 | . 3 22 10 . . . . 1 3 4 . Naked Turns 12 | . . . . . . . . . . . 12 Heaviest Build 118 | 14 91 94 100 103 102 105 116 109 116 118 114 Greatest Support 80 | 40 40 40 60 60 60 60 60 64 62 80 80 Greatest Overweight (x) 2 | . 2 2 1 1 1 1 1 1 1 1 2 Average Overweight (x) 1 | . . 2 1 1 1 1 1 1 1 1 . Largest Inventory Capacity 25 | 8 25 25 25 25 25 25 25 25 25 25 25 Average Capacity 23 | 8 12 25 25 25 25 25 25 25 25 25 23 Most Carried 25 | 6 22 22 25 25 25 25 25 25 25 25 25 Average Carried 22 | 4 11 20 24 24 25 24 24 23 24 23 22 Final Capacity 25 | 8 25 25 25 25 25 25 25 25 25 25 5 Final Carried 25 | 5 21 21 25 25 25 25 25 25 24 25 5 Class Distribution -------------------- 72% | Scavenger-Mutant 25% | Mutant Dominant Class ---------------- Mutant | -10/Materials Mutant | -10/Mines Scavenger-Mutant | -9/Materials Scavenger-Mutant | -9/Mines Scavenger-Mutant | -9/Exiles Scavenger-Mutant | -8/Mines Scavenger-Mutant | -8/Materials Mutant | -8/Storage Scavenger-Mutant | -8/Garrison Scavenger-Mutant | -7/Factory Scavenger-Mutant | -7/Waste Resources | -11 -10 -10 -9 -9 -9 -8 -8 -8 -8 -7 -7 ----------- Run | Jun Mat Min Mat Min Exi Min Mat Sto Gar Fac Was Matter Collected 8993 | 450 397 136 1255 1049 300 367 2261 1326 1082 370 . Remotely 63 | . . . . . . . 63 . . . . Salvage Created 9017 | 314 447 38 1329 615 . 353 2958 1659 952 352 . Parts 542 | 37 41 4 95 33 . 17 159 75 62 19 . Haulers Intercepted 19 | . 2 . 6 . . . 6 5 . . . Recyclers Shooed 12 | 1 4 1 2 1 . 1 1 1 . . . Parts Field Recycled . | . . . . . . . . . . . . Retrieved Matter . | . . . . . . . . . . . . Parts Self-Destructed . | . . . . . . . . . . . . Prevented . | . . . . . . . . . . . . Kills | -11 -10 -10 -9 -9 -9 -8 -8 -8 -8 -7 -7 ------- Run | Jun Mat Min Mat Min Exi Min Mat Sto Gar Fac Was Combat Hostiles Destroyed 177 | . 11 4 29 11 . 9 47 29 27 10 . Guns 101 | . 11 . 11 7 . 4 36 16 14 2 . Cannons 33 | . . 2 14 . . . 4 3 5 5 . AOE 43 | . . 2 4 4 . 5 7 10 8 3 . Classes Destroyed 18 | 3 5 . 5 . . 1 3 . 1 . . Worker 23 | 4 2 . 2 1 . 1 5 8 . . . Builder 6 | . 1 . 1 . . . 1 3 . . . Tunneler 10 | 9 . . . 1 . . . . . . . Hauler 19 | . 2 . 6 . . . 6 5 . . . Recycler 11 | 1 . . 1 3 . . 5 1 . . . Mechanic 1 | . . . 1 . . . . . . . . Operator 2 | . . . 1 . . . . 1 . . . Watcher 8 | . 1 . 5 . . . 2 . . . . Swarmer 33 | . 6 3 6 8 . . 3 2 5 . . Grunt 104 | . 5 1 17 3 . 8 31 19 15 5 . Brawler 5 | . . . 1 . . . 2 1 . 1 . Duelist 3 | . . . 1 . . . . 2 . . . Protector 2 | . . . . . . . 1 . . 1 . Sentry 23 | . . . 4 . . . 7 5 5 2 . Specialist 2 | . . . . . . . 2 . . . . Hunter 2 | . . . . . . 1 . . 1 . . Programmer 2 | . . . . . . . . . 1 1 . Heavy 1 | . . . . . . . 1 . . . . Best Kill Streak 8 | 4 3 2 8 4 . 4 7 6 4 5 . Combat Bots Only 6 | . 3 2 6 4 . 3 6 4 4 5 . Max Kills in Single Turn 4 | 1 2 2 3 2 . 3 3 4 2 2 . Gunslinging 1 | . 1 . . 1 . . . . . . . Exploded 4 | . . 2 2 1 . 3 2 4 2 2 . Melee . | . . . . . . . . . . . . Uniques/NPCs Destroyed 1 | . . . . 1 . . . . . . . YI-UF0 (-9/Mines) Combat | -11 -10 -10 -9 -9 -9 -8 -8 -8 -8 -7 -7 -------- Run | Jun Mat Min Mat Min Exi Min Mat Sto Gar Fac Was Damage Taken 8500 | . 307 243 688 297 . 745 2492 1411 1018 400 899 Core 1505 | . 43 21 116 45 . 154 157 144 124 21 680 Absorbed by Shields 1059 | . . . . . . . . 367 361 319 12 Regen/Repaired (Parts) 48 | . . . 48 . . . . . . . . Core Remaining (%) 54 | 100 . 74 . . . 21 . . 22 . . Volleys Fired 639 | 30 47 43 78 45 . 29 137 110 79 30 11 Largest 2 | 2 2 2 2 2 . 2 2 2 2 2 2 Hottest 100 | 40 40 100 78 62 . 70 78 62 67 67 67 Shots Fired 1180 | 60 91 62 151 83 . 54 269 199 145 51 15 Gun 900 | 60 88 . 70 68 . 50 244 161 124 21 14 Cannon 203 | . . 37 77 8 . . 19 29 10 22 1 Launcher 51 | . 3 1 4 7 . 4 6 9 11 6 . Special 26 | . . 24 . . . . . . . 2 . Kinetic 1103 | 60 88 37 147 76 . 50 263 190 134 43 15 Thermal 24 | . . 24 . . . . . . . . . Explosive 51 | . 3 1 4 7 . 4 6 9 11 6 . Electromagnetic . | . . . . . . . . . . . . Robot Hit Streak 34 | 10 7 9 17 12 . 8 34 19 19 9 6 Robot Miss Streak 8 | 3 6 8 4 3 . 2 3 4 3 2 2 Penetration Max 1 | . . . . . . 1 1 . . 1 . Secondary Targets 6 | . 2 . . 1 . . 1 . 2 . . Max Gunslinging Chain 1 | . 1 . . 1 . . 1 . 1 . . Shots Hit Robots 805 | 34 46 17 108 55 . 42 212 142 100 40 9 Core Hits 428 | 19 27 5 55 23 . 27 118 78 52 24 . Critical Kills 3 | . . . . . . . 2 . 1 . . Critical Parts Destroyed 4 | 1 . . . . . . . 3 . . . Critical Strikes 14 | 1 . . 2 . . . 3 5 1 1 1 Destroy 5 | 1 . . . . . . 2 . 1 . 1 Blast 6 | . . . 2 . . . 1 2 . 1 . Smash 3 | . . . . . . . . 3 . . . Melee Attacks 45 | . . . 3 . . . 4 18 16 2 2 Impact 45 | . . . 3 . . . 4 18 16 2 2 Slashing . | . . . . . . . . . . . . Piercing . | . . . . . . . . . . . . Sneak Attacks 9 | . . . . . . . 1 8 . . . Combat Hostiles . | . . . . . . . . . . . . Follow-up Attacks . | . . . . . . . . . . . . Damage Inflicted 19152 | 377 615 569 2451 1366 . 1244 4445 4140 2395 1305 245 Guns 10186 | 377 520 . 922 742 . 550 3202 1890 1438 413 132 Cannons 2801 | . . 380 1041 150 . . 325 372 137 378 18 Explosions 5082 | . 94 141 467 363 . 694 794 1195 820 514 . Melee 794 | . . . . . . . 116 678 . . . Ramming 289 | . 1 48 21 111 . . 8 5 . . 95 Kinetic 12987 | 377 520 380 1963 892 . 550 3527 2262 1575 791 150 Thermal 45 | . . . . 45 . . . . . . . Explosive 5037 | . 94 141 467 318 . 694 794 1195 820 514 . Electromagnetic . | . . . . . . . . . . . . Impact 794 | . . . . . . . 116 678 . . . Slashing . | . . . . . . . . . . . . Piercing . | . . . . . . . . . . . . Highest Corruption 47 | . 2 2 . . . . 4 12 16 6 47 Average Corruption 7 | . 2 2 . . . . 4 10 14 5 17 Corruption Purged . | . . . . . . . . . . . . Corruption Blocked . | . . . . . . . . . . . . Effects 271 | . 17 34 . . . . 42 67 94 6 11 Message Errors 54 | . 4 6 . . . . 13 11 16 2 2 Matter Fused 56 | . 2 7 . . . . 8 16 20 1 2 Heat Flow Errors 43 | . 2 9 . . . . 4 13 11 1 3 Energy Discharges 35 | . 2 7 . . . . 9 6 11 . . Parts Rejected 4 | . . . . . . . . . 3 . 1 Parts Fused 4 | . 1 . . . . . . . 2 1 . Data Loss (minor) 31 | . 4 4 . . . . 3 8 11 . 1 Data Loss (major) 14 | . 2 . . . . . 2 2 6 . 2 Misfires 10 | . . 1 . . . . 3 1 5 . . Alerts 6 | . . . . . . . . 3 3 . . Weapon Failures 14 | . . . . . . . . 7 6 1 . Overload Shots . | . . . . . . . . . . . . Overflow Damage 588 | . . 29 . 42 . . 119 343 37 18 . Projectiles 88 | . . 29 . . . . 38 3 . 18 . Explosions 100 | . . . . 42 . . 5 16 37 . . Melee 400 | . . . . . . . 76 324 . . . Knockbacks 32 | . . 9 9 1 . . 7 4 . 2 . Impact 6 | . . 2 1 1 . . 1 1 . . . Kinetic 23 | . . 7 6 . . . 5 3 . 2 . Secondary 3 | . . . 2 . . . 1 . . . . Self-Inflicted Damage 235 | . . 16 . 34 . 59 31 . . . 95 Shots 6 | . . 1 . 1 . 3 1 . . . . Rammed 35 | . 1 6 3 23 . . 1 1 . . . Targets Rammed 36 | . 1 6 4 23 . . 1 1 . . . Kicked . | . . . . . . . . . . . . Crushed 1 | . . . 1 . . . . . . . . Highest Temperature 330 | . 187 326 16 143 . 32 257 330 257 75 268 Average Temperature 91 | . 74 91 6 82 . 10 54 130 90 55 94 Received Heat Transfer 3058 | . 72 93 285 102 . 270 999 794 336 107 . Effects 1 | . . . . . . . . 1 . . . Short Circuit 1 | . . . . . . . . 1 . . . Siege Activations . | . . . . . . . . . . . . Robots Corrupted . | . . . . . . . . . . . . Combat Hostiles . | . . . . . . . . . . . . Parts Fried 6 | . . . . . . . 2 4 . . . Impact Corruptions 14 | . . . . . . . 5 9 . . . Robots Melted . | . . . . . . . . . . . . Combat Hostiles . | . . . . . . . . . . . . Parts Melted . | . . . . . . . . . . . . Heat Transferred 50 | . . . . 50 . . . . . . . Parts Sabotaged . | . . . . . . . . . . . . Parts Stolen . | . . . . . . . . . . . . Parts Stripped . | . . . . . . . . . . . . Power Chain Reactions . | . . . . . . . . . . . . Missiles Intercepted . | . . . . . . . . . . . . Alert | -11 -10 -10 -9 -9 -9 -8 -8 -8 -8 -7 -7 ------- Run | Jun Mat Min Mat Min Exi Min Mat Sto Gar Fac Was Peak Influence 2696 | 70 245 180 751 332 . 179 988 1722 2696 1541 541 Initial 1415 | . 45 12 . 271 . . . 417 1119 1415 539 Average 606 | 39 113 56 434 144 . 54 471 1231 1854 1421 480 Maximum Alert Level 5 | . 1 . 3 1 . . 3 5 5 4 2 Low Security (%) 40 | 100 91 100 24 67 . 100 14 . . . . Level 1 10 | . 8 . 6 32 . . 29 . . . 4 Level 2 17 | . . . 48 . . . 39 9 . . 95 Level 3 8 | . . . 20 . . . 16 17 . . . Level 4 13 | . . . . . . . . 60 29 100 . Level 5 10 | . . . . . . . . 12 70 . . High Security . | . . . . . . . . . . . . Max Security . | . . . . . . . . . . . . Squads Dispatched 36 | . 2 . 8 1 . . 11 12 . 2 . Investigation 9 | . 1 . 4 1 . . 1 1 . 1 . Extermination . | . . . . . . . . . . . . Reinforcement 15 | . 1 . 3 . . . 9 2 . . . Assault 6 | . . . 1 . . . 1 3 . 1 . Garrison 6 | . . . . . . . . 6 . . . Intercept . | . . . . . . . . . . . . Searches Triggered . | . . . . . . . . . . . . Construction Impeded 1 | . . . 1 . . . . . . . . Haulers Reinforced . | . . . . . . . . . . . . Active Scanning Responses . | . . . . . . . . . . . . Cargo Convoy Interrupts . | . . . . . . . . . . . . Stealth | -11 -10 -10 -9 -9 -9 -8 -8 -8 -8 -7 -7 --------- Run | Jun Mat Min Mat Min Exi Min Mat Sto Gar Fac Was Distress Signals 17 | . 1 . 6 . . . 9 1 . . . Communications Jammed . | . . . . . . . . . . . . Distress Signals . | . . . . . . . . . . . . Times Spotted 285 | . 20 6 49 10 . 11 72 65 36 11 5 Peak Tracking Total 6 | . 4 3 6 4 . 4 6 6 5 5 5 Tactical Retreats 18 | . . 1 3 . . 1 5 3 3 . 2 Traps | -11 -10 -10 -9 -9 -9 -8 -8 -8 -8 -7 -7 ------- Run | Jun Mat Min Mat Min Exi Min Mat Sto Gar Fac Was Traps Triggered 15 | . 1 . 1 . . . . 3 9 1 . Indirectly . | . . . . . . . . . . . . Trap Hack Attempts . | . . . . . . . . . . . . Triggered . | . . . . . . . . . . . . Disarmed . | . . . . . . . . . . . . Reprogrammed . | . . . . . . . . . . . . Reused . | . . . . . . . . . . . . Traps Extracted . | . . . . . . . . . . . . Installed . | . . . . . . . . . . . . Triggered . | . . . . . . . . . . . . Machines | -11 -10 -10 -9 -9 -9 -8 -8 -8 -8 -7 -7 ---------- Run | Jun Mat Min Mat Min Exi Min Mat Sto Gar Fac Was Machines Disabled 36 | . . 18 2 5 . 1 2 3 5 . . Max in Single Turn 3 | . . 1 1 3 . 1 1 1 1 . . Garrison Relay 5 | . . . . . . . . . 5 . . Machines Repaired . | . . . . . . . . . . . . Machines Sabotaged . | . . . . . . . . . . . . Overloaded Fab Kills . | . . . . . . . . . . . . Hacking | -11 -10 -10 -9 -9 -9 -8 -8 -8 -8 -7 -7 --------- Run | Jun Mat Min Mat Min Exi Min Mat Sto Gar Fac Was Machines Accessed 27 | . 4 . 9 1 1 . 4 5 2 1 . Terminals 16 | . 3 . 5 . . . 2 4 2 . . Fabricators 1 | . . . . . . . . . . 1 . Repair Stations 1 | . . . 1 . . . . . . . . Recycling Units 4 | . 1 . 2 . . . 1 . . . . Scanalyzers 2 | . . . 1 . . . 1 . . . . Garrison Access 1 | . . . . . . . . 1 . . . Total Hacks 62 | . 10 . 24 1 1 . 13 6 3 4 . Successful 33 | . 4 . 12 1 1 . 9 5 . 1 . Failed 28 | . 5 . 12 . . . 4 1 3 3 . Catastrophic 6 | . 1 . 4 . . . . . 1 . . Database Lockouts 1 | . 1 . . . . . . . . . . Manual 26 | . 9 . 12 . . . 2 3 . . . Terminals 33 | . 9 . 11 . . . 5 5 3 . . Fabricators 4 | . . . . . . . . . . 4 . Repair Stations 2 | . . . 2 . . . . . . . . Recycling Units 5 | . 1 . 2 . . . 2 . . . . Scanalyzers 15 | . . . 9 . . . 6 . . . . Garrison Access 1 | . . . . . . . . 1 . . . Terminal Hacks 11 | . 3 . 1 1 1 . 3 2 . . . Record 1 | . . . . . 1 . . . . . . Robot Analysis 1 | . 1 . . . . . . . . . . Open Door 3 | . . . . 1 . . . 2 . . . Branch Access Points 1 | . . . . . . . 1 . . . . Hauler Manifests 2 | . 2 . . . . . . . . . . Zone Layout 3 | . . . 1 . . . 2 . . . . Fabricator Hacks 1 | . . . . . . . . . . 1 . Build 1 | . . . . . . . . . . 1 . Repair Station Hacks 2 | . . . 2 . . . . . . . . Scan Component 1 | . . . 1 . . . . . . . . Repair 1 | . . . 1 . . . . . . . . Recycling Unit Hacks . | . . . . . . . . . . . . Scanalyzer 12 | . . . 7 . . . 5 . . . . Insert Component 5 | . . . 3 . . . 2 . . . . Analyze 7 | . . . 4 . . . 3 . . . . Garrison Access Hacks 1 | . . . . . . . . 1 . . . Unlock Access 1 | . . . . . . . . 1 . . . Unauthorized Hacks 6 | . 1 . 2 . . . 1 2 . . . Terminals 2 | . . . . . . . . 2 . . . Botnet 2 | . . . . . . . . 2 . . . Fabricators . | . . . . . . . . . . . . Repair Stations . | . . . . . . . . . . . . Recycling Units 4 | . 1 . 2 . . . 1 . . . . Tunnel 4 | . 1 . 2 . . . 1 . . . . Scanalyzers . | . . . . . . . . . . . . Garrison Access . | . . . . . . . . . . . . Data Cores Recovered . | . . . . . . . . . . . . Used . | . . . . . . . . . . . . Hacking Detections 16 | . 3 . 6 . . . 1 3 2 1 . Full Trace Events 3 | . . . 1 . . . . . 1 1 . Feedback Events . | . . . . . . . . . . . . Feedback Blocked . | . . . . . . . . . . . . Robot Schematics Acquired . | . . . . . . . . . . . . Robots Built 3 | . . . . . . . . . . 3 . Authchips . | . . . . . . . . . . . . Time 49 | . . . . . . . . . . 49 . Total Robot Build Rating 6 | . . . . . . . . . . 6 . Part Schematics Acquired 4 | . . . 2 . . . 2 . . . . Parts Built . | . . . . . . . . . . . . Authchips . | . . . . . . . . . . . . Time . | . . . . . . . . . . . . Total Part Build Rating . | . . . . . . . . . . . . Parts Repaired 1 | . . . 1 . . . . . . . . Time 26 | . . . 26 . . . . . . . . Parts Recycled . | . . . . . . . . . . . . Recycled Matter . | . . . . . . . . . . . . Retrieved Matter . | . . . . . . . . . . . . Retrieved Components . | . . . . . . . . . . . . Parts Scanalyzed 5 | . . . 3 . . . 2 . . . . Part Schematics Acquired 4 | . . . 2 . . . 2 . . . . Parts Damaged . | . . . . . . . . . . . . Bothacking | -11 -10 -10 -9 -9 -9 -8 -8 -8 -8 -7 -7 ------------ Run | Jun Mat Min Mat Min Exi Min Mat Sto Gar Fac Was Used RIF Installer 2 | . . . . . . . . . 2 . . Coupler Efficiency 1 | . . . . . . . . . 1 . . Robots Hacked 1 | . . . . . . . . . . 1 . Non-combat 1 | . . . . . . . . . . 1 . Combat . | . . . . . . . . . . . . Robot Hacks Applied 1 | . . . . . . . . . . 1 . find_chute 1 | . . . . . . . . . . 1 . Relay Couplers Released 25 | . . . . . . . . . 25 . . Machine Destruction 22 | . . . . . . . . . 22 . . Programmers 3 | . . . . . . . . . 3 . . Fabnet Peak Effective % . | . . . . . . . . . . . . Robots Rewired 3 | . . . . . . . . . 3 . . Allies Hacked . | . . . . . . . . . . . . Hacks Repelled . | . . . . . . . . . . . . Allies | -11 -10 -10 -9 -9 -9 -8 -8 -8 -8 -7 -7 -------- Run | Jun Mat Min Mat Min Exi Min Mat Sto Gar Fac Was Total Allies 21 | . . 5 . . . . . 10 3 3 . Largest Group 10 | . . 5 5 . . . . 10 3 3 2 Highest-Rated Group 173 | . . 87 87 . . . . 173 72 30 20 Highest-Rated Ally 31 | . . 31 31 . . . . 29 24 10 10 Total Orders 2 | . . . . . . . . . 2 . . STAY 1 | . . . . . . . . . 1 . . FOLLOW 1 | . . . . . . . . . 1 . . Ally Attacks 238 | . . 2 48 . . . . 153 31 . 4 Total Damage 3624 | . . 43 706 . . . . 1851 930 . 94 Kills 54 | . . 1 13 . . . . 28 11 . 1 Allies Corrupted 1 | . . . . . . . . 1 . . . Allies Melted . | . . . . . . . . . . . . Intel | -11 -10 -10 -9 -9 -9 -8 -8 -8 -8 -7 -7 ------- Run | Jun Mat Min Mat Min Exi Min Mat Sto Gar Fac Was Robot Analysis Total 1 | . 1 . . . . . . . . . . Derelict Logs Recovered 3 | . . 1 . 2 . . . . . . . Drone Launches . | . . . . . . . . . . . . Drone Recoveries . | . . . . . . . . . . . . Exploration | -11 -10 -10 -9 -9 -9 -8 -8 -8 -8 -7 -7 ------------- Run | Jun Mat Min Mat Min Exi Min Mat Sto Gar Fac Was Turns Passed 19285 | 329 1233 2156 3384 2351 452 1128 2980 1952 2317 742 261 Spaces Moved 6473 | 88 552 599 1145 867 189 388 939 601 792 252 61 Core . | . . . . . . . . . . . . Treads 6473 | 88 552 599 1145 867 189 388 939 601 792 252 61 Legs . | . . . . . . . . . . . . Wheels . | . . . . . . . . . . . . Hover . | . . . . . . . . . . . . Flight . | . . . . . . . . . . . . Fastest Speed 160 | 160 160 320 240 240 240 240 240 230 235 240 160 Average Speed 239 | 160 170 320 240 240 240 240 241 233 238 240 234 Slowest Speed 320 | 160 320 320 240 240 240 240 243 243 240 240 320 Overloaded Moves . | . . . . . . . . . . . . Propulsion Burnouts . | . . . . . . . . . . . . Robots Hopped . | . . . . . . . . . . . . Cave-ins Triggered . | . . . . . . . . . . . . Exploration Rate (%) 65 | 4 87 99 83 98 54 70 91 91 73 10 29 Regions Visited 11 Branch Regions 5 Pre-discovered Areas 7 | . 1 . 2 2 1 . 1 . . . . Known Exits Taken 3 | . . 1 . . . . 1 1 . . . Unknown Exits Taken 6 | 1 1 . 1 1 1 1 . . . . . Scrap Searched 6 | . . 2 . 2 . 2 . . . . . Spaces Dug 71 | . . . 3 31 . . 3 12 8 12 2 Terrain Destroyed 385 | . 16 16 23 77 . 26 41 81 60 43 2 Melee 22 | . . . 3 . . . 3 4 8 2 2 Projectile 14 | . . 5 1 1 . . 2 3 . 2 . AOE 349 | . 16 11 19 76 . 26 36 74 52 39 . Terrain Rammed 17 | . . . . . . . . . . . 17 Walls Destroyed . | . . . . . . . . . . . . Machines Disabled . | . . . . . . . . . . . . Actions | -11 -10 -10 -9 -9 -9 -8 -8 -8 -8 -7 -7 --------- Run | Jun Mat Min Mat Min Exi Min Mat Sto Gar Fac Was Total 8972 | 224 772 716 1631 1021 188 532 1398 939 1060 334 157 Wait 1221 | 95 106 60 315 65 . 94 200 123 77 30 56 Move 6463 | 87 551 598 1144 866 188 387 938 600 791 252 61 Hop . | . . . . . . . . . . . . Pick Up 120 | 4 33 1 29 4 . 5 22 11 6 5 . Fast Attach 48 | 1 2 . 6 3 . 2 12 10 7 1 4 Attach 51 | 2 1 2 6 1 . 5 13 9 6 4 2 Detach 3 | . . . . 1 . . . 1 1 . . Swap 125 | . 8 5 13 7 . 4 28 25 23 7 5 Drop 156 | 5 23 1 33 6 . 6 43 25 11 3 . Fire 639 | 30 47 43 78 45 . 29 137 110 79 30 11 Melee 45 | . . . 3 . . . 4 18 16 2 2 Ram 16 | . . . . . . . . . . . 16 Kick . | . . . . . . . . . . . . Crush 36 | . 1 6 4 23 . . 1 1 . . . Escape Stasis 16 | . . . . . . . . 6 10 . . Rewire 33 | . . . . . . . . . 33 . . Trap . | . . . . . . . . . . . . Miscellaneous . | . . . . . . . . . . . . Route ------- -11/Junkyard -10/Materials (discovered 5 exits: *Mat x3 / [*Min x2]) -10/Mines (discovered 2 exits: *Mat x2) -9/Materials (discovered 3 exits: *Mat x2 / *Min) -9/Mines (discovered 4 exits: *Mat x2 / *Exi / [*Zio]) -9/Exiles -8/Mines (discovered 2 exits: *Mat x2) -8/Materials (discovered 4 exits: *Fac x3 / *Sto) -8/Storage (discovered 2 exits: *Fac / Gar) -8/Garrison (discovered 3 exits: *Fac x3) -7/Factory -7/Waste History --------- Turn | Location | Event 22 | -11/Junkyard | Discovered new exit (range 2) 330 | -11/Junkyard | Entered Materials 331 | -10/Materials | Build established: Mutant 376 | -10/Materials | Central database locked down 446 | -10/Materials | Discovered new exit (range 16) 676 | -10/Materials | Discovered new exit (range 7) 1046 | -10/Materials | Discovered new exit (range 16) 1261 | -10/Materials | Discovered new exit (range 10) 1392 | -10/Materials | Discovered new exit (range 15) 1563 | -10/Materials | Entered Mines 2472 | -10/Mines | Found a hidden stash of uninstalled traps 2938 | -10/Mines | Discovered new exit (range 4) 3065 | -10/Mines | Build established: Scavenger-Mutant 3306 | -10/Mines | Identified exit to Materials 3678 | -10/Mines | Assisted by bots powering up and referring to "LRC-V3" 3719 | -10/Mines | Entered Materials 3719 | -9/Materials | Accompanied by 5 allies 3719 | -9/Materials | Evolved 2 slots: Propulsion x1, Utility x1 3724 | -9/Materials | Led the pair of lost Derelicts to an unsafe place 5052 | -9/Materials | Discovered new exit (range 16) 5411 | -9/Materials | Discovered new exit (range 5) 5500 | -9/Materials | Repaired Lgt. Treads 6119 | -9/Materials | First assault squad dispatched 6157 | -9/Materials | Discovered new exit (range 16) 7103 | -9/Materials | Entered Mines 7178 | -9/Mines | Discovered new exit (range 15) 7266 | -9/Mines | YI-UF0 nonchalantly dropped a Grenade Launcher on the ground 7407 | -9/Mines | Destroyed YI-UF0 7422 | -9/Mines | Found Prototype Storage 7423 | -9/Mines | Identified YI-UF0's Bottomless Matter Pit 7431 | -9/Mines | Found Prototype Launcher 7432 | -9/Mines | Identified YI-UF0's Doublenader 7533 | -9/Mines | Learned location of Zion (-7) 7794 | -9/Mines | A Derelict revealed a hidden shortcut to a safe place 7814 | -9/Mines | Discovered new exit (range 7) 8159 | -9/Mines | Learned location of Storage (-8) 8342 | -9/Mines | Met a Derelict shopkeep closing up shop 8829 | -9/Mines | Learned location of 1 exit from Proximity Caves 8857 | -9/Mines | Discovered new exit (range 15) 9442 | -9/Mines | Deemed a non-threat by the Exiles lab entrance 9454 | -9/Mines | Entered Exiles 9512 | -9/Exiles | Met 8R-AWN 9553 | -9/Exiles | Met EX-HEX 9627 | -9/Exiles | Met EX-BIN 9714 | -9/Exiles | Met EX-DEC 9872 | -9/Exiles | Discovered new exit (range 14) 9906 | -9/Exiles | Entered Mines 10199 | -8/Mines | Core integrity fell below 50% 10336 | -8/Mines | Discovered new exit (range 8) 11020 | -8/Mines | Discovered new exit (range 5) 11034 | -8/Mines | Entered Materials 11034 | -8/Materials | Evolved 2 slots: Power x1, Utility x1 11156 | -8/Materials | Lost 3 parts (1p1u1w) 11475 | -8/Materials | Discovered new exit (range 15) 12244 | -8/Materials | Discovered new exit (range 16) 12953 | -8/Materials | Discovered new exit (range 9) 13564 | -8/Materials | Identified exit to Storage 13834 | -8/Materials | First assault squad dispatched 14014 | -8/Materials | Entered Storage 14120 | -8/Storage | Assisted by bots powering up and referring to "LRC-V3" 14152 | -8/Storage | Garrison activated, responded to threat 14281 | -8/Storage | Identified exit to Garrison 14414 | -8/Storage | First assault squad dispatched 14425 | -8/Storage | Build established: Commander-Mutant 14443 | -8/Storage | System corruption reached 10% 14481 | -8/Storage | Garrison activated, responded to threat 14485 | -8/Storage | Lost 3 parts (1p2u) 14707 | -8/Storage | Discovered new exit (range 2) 14967 | -8/Storage | Build established: Mutant 15454 | -8/Storage | Build established: Scavenger-Mutant 15571 | -8/Storage | Core integrity fell below 50% 15805 | -8/Storage | Build established: Mutant 15966 | -8/Storage | Entered Garrison 16056 | -8/Garrison | Triggered checkpoint 16157 | -8/Garrison | Garrison Relay disabled 16308 | -8/Garrison | Triggered checkpoint 16441 | -8/Garrison | Triggered checkpoint 16536 | -8/Garrison | Discovered new exit (range 10) 16634 | -8/Garrison | Triggered checkpoint 16705 | -8/Garrison | Installed Relay Interface Framework 16785 | -8/Garrison | Garrison Relay disabled 16985 | -8/Garrison | Triggered checkpoint 17074 | -8/Garrison | Build established: Scavenger-Mutant 17081 | -8/Garrison | Spotted B-75 Beast 17084 | -8/Garrison | Discovered new exit (range 14) 17212 | -8/Garrison | Triggered checkpoint 17364 | -8/Garrison | Garrison Relay disabled 17584 | -8/Garrison | Triggered checkpoint 17697 | -8/Garrison | Discovered new exit (range 13) 17784 | -8/Garrison | Triggered checkpoint 17804 | -8/Garrison | Triggered checkpoint 17868 | -8/Garrison | Expanded RIF knowledge: Coupler Efficiency 17906 | -8/Garrison | Garrison Relay disabled 18102 | -8/Garrison | Triggered checkpoint 18154 | -8/Garrison | Triggered checkpoint 18154 | -8/Garrison | Garrison Relay disabled 18283 | -8/Garrison | Entered Factory 18283 | -7/Factory | Evolved 2 slots: Propulsion x1, Utility x1 18683 | -7/Factory | First assault squad dispatched 18843 | -7/Factory | Discovered new exit (range 13) 19021 | -7/Factory | Fabricated B-36 Bruiser (x3) 19025 | -7/Factory | Sucked down chute 19025 | -7/Factory | Entered Waste 19040 | -7/Waste | EMP discharged 19040 | -7/Waste | System corruption reached 10% 19082 | -7/Waste | Allies destroyed C-40 Crusher 19090 | -7/Waste | 3 allies followed down the chute 19090 | -7/Waste | Spotted C-40 Crusher 19092 | -7/Waste | Spotted C-40 Crusher 19140 | -7/Waste | EMP discharged 19147 | -7/Waste | Spotted C-40 Crusher 19150 | -7/Waste | Crushed by Compactor (1 part destroyed, 2 dropped) 19180 | -7/Waste | Spotted C-40 Crusher 19206 | -7/Waste | Crushed by Compactor (1 part destroyed, 1 dropped) 19209 | -7/Waste | Crushed by Compactor (1 part destroyed, 1 dropped) 19240 | -7/Waste | EMP discharged 19240 | -7/Waste | Lost 3 parts (1p1n1u) 19252 | -7/Waste | Spotted C-40 Crusher 19261 | -7/Waste | Crushed by Compactor (1 part destroyed, 2 dropped) 19264 | -7/Waste | Crushed by Compactor (1 part destroyed, 2 dropped) 19271 | -7/Waste | System corruption reached 30% 19271 | -7/Waste | Crushed by Compactor (1 part destroyed, 1 dropped) 19274 | -7/Waste | Crushed by Compactor (1 part destroyed) 19279 | -7/Waste | Core integrity fell below 50% 19284 | -7/Waste | Core integrity fell below 20% 19286 | -7/Waste | Core destroyed Last Messages --------------- 19278_ Destabilizing: Core damaged (-14). 19278_ Destabilizing: Core damaged (-28). 19279_ Slammed into Wall. 19279_ Destabilizing: System corrupted (+2). 19280_ System corrupted: Heat flow error (+107). 19280_ Slammed into Wall. 19280_ Destabilizing: System corrupted (+1). 19280_ Destabilizing: Core damaged (-7). 19281_ Slammed into Wall. 19281_ Destabilizing: System corrupted (+2). 19281_ Destabilizing: Core damaged (-7). 19282_ Slammed into Wall. 19282_ Destabilizing: Core damaged (-21). 19282_ Destabilizing: Core damaged (-14). 19283_ Slammed into Wall. 19283_ Destabilizing: System corrupted (+1). 19284_ Slammed into Wall. 19284_ Destabilizing: System corrupted (+1). 19284_ Destabilizing: System corrupted (+2). 19285_ Slammed into Wall. Map ----- +----------------------------------------------------+ | ?????????????????????????????????????????????????? | | ?????????????????????????????????????????????????? | | ?????????????????????????????????????????????????? | | ?????????????????????????????????????????????????? | | ?????????????????????######??????????????????????? | | ?????????????????????# #??????????????????????? | | ???????############??# #??????????????????????? | | ???????# #??# #??????????????????????? | | ???????# #??# #????????? ???????????? | | ???????# #### ######## #??????????? | | ???????# ??????????? | | ???????# ?????????? | | ???????# ?????????? | | ???????# ! ?????????? | | ???????# #### CC#######????????????????? | | ???????# #??# CC#??????????????????????? | | ???????# ##?# #??????????????????????? | | ???????###########;### #??????????????????????? | | ?????????????????##;## #??????????????????????? | | ??????????????????## #??????????????????????? | | ???????????????????#= #??????????????????????? | | ???????????????????#| #??????????????????????? | | ???????????????????#! [#??????????????????????? | | ???????????????????### CC #??????????????????????? | | ?????????????????????# CC #??????????????????????? | | ?????????????????????# @#??????????????????????? | | ?????????????????????# CC#??????????????????????? | | ?????????????????????# CC#??????????????????????? | | ???????????????????? ??????????????????????? | | ???????????????????# ?????????????????????? | | ???????????????????# ????????????????????? | | ???????????????????# ????????????????????? | | ???????????????????### ####???????????????????? | | ?????????????????????# #??????????????????????? | | ?????????????????????# #??????????????????????? | | ?????????????????????# #??????????????????????? | | ?????????????????????# ???????????????????????? | | ?????????????????????#####???????????????????????? | | ?????????????????????????????????????????????????? | | ?????????????????????????????????????????????????? | | ?????????????????????????????????????????????????? | | ?????????????????????????????????????????????????? | | ?????????????????????????????????????????????????? | | ?????????????????????????????????????????????????? | | ?????????????????????????????????????????????????? | | ?????????????????????????????????????????????????? | | ?????????????????????????????????????????????????? | | ?????????????????????????????????????????????????? | | ?????????????????????????????????????????????????? | | ?????????????????????????????????????????????????? | +----------------------------------------------------+ Best States ------------- Heat Dissipation 69 Energy Generation 23 Energy Capacity 460 Matter Stores 300 Matter Capacity 300 Sight Range 16 Terrain Scan Range 16 Terrain Scan Density 10 Jamming Range 12 Armor Coverage 600 Resistance: KI 20 Resistance: TH 10 Evasion (%) 40 Targeting Accuracy 8 Target Analysis 5 Recoil Reduction 4 Offensive Hacking 11 Item Schematics ----------------- Transport Network Coupler | -9/Materials | Scanalyzed Trap Scanner | -9/Materials | Scanalyzed Plasma Cutter | -8/Materials | Scanalyzed Reflective Plating | -8/Materials | Scanalyzed Robot Schematics ------------------ None Fabricated ------------ B-36 Bruiser | x3 | -7/Factory | Preloaded Alien Tech Used ----------------- None Achievements -------------- None Challenges ------------ None Game ------ Seed StasisAlloyCharger Manual? 0 Play Time 01:42:48 Cumulative 429.6 hours Start 2023.04.13 @ 21:35:00 End 2023.04.13 @ 23:19:34 Sessions 1 Manual Loads 0 Difficulty Rogue Special Mode None Game No. 193 Rogue 193 Adventurer 0 Explorer 0 Win Type - Total 9 Types 5/1/0/1/2/0/0/0/0 Lore% 67 Gallery% 81 Achievement% 71 Wizard Run 0 Options --------- ASCII 0 Keyboard 0 Movement Mouse Keybinds 0 Fullscreen 0 Font 28/SmallcapsGlow Map View 72x54 Tactical HUD 1 Map Filters NONE Filters NONE Steam 1 RUN: ea8f9ebe-6eba-433f-8374-bde962c65f46